[Event "Titled Tuesday Blitz January 10 Late 2023"]
[White "Torres Dominguez, David"]
[Black "Chor, Kevin"]
[WhiteFideId "2220857"]
[BlackFideId "2090740"]
[WhiteElo "1994"]
[BlackElo "1944"]
[Result "0-1"]
[Round "04"]
[TimeControl "180+2"]
[Date "2023.01.10"]
[WhiteClock "0:00:01"]
[BlackClock "0:00:10"]

1. e4 {[%clk 0:00:00]}  c5 {[%clk 0:00:00]} 2. Nc3 {[%clk 0:03:00]}  g6 {[%clk 0:02:59]} 3. f4 {[%clk 0:03:00]}  Bg7 {[%clk 0:02:59]} 4. Nf3 {[%clk 0:03:00]}  Nc6 {[%clk 0:02:59]} 5. a4 {[%clk 0:03:01]}  d6 {[%clk 0:02:59]} 6. Bb5 {[%clk 0:03:00]}  Bd7 {[%clk 0:02:55]} 7. O-O {[%clk 0:02:59]}  a6 {[%clk 0:02:52]} 8. Bc4 {[%clk 0:02:57]}  Nd4 {[%clk 0:02:42]} 9. Nxd4 {[%clk 0:02:56]}  cxd4 {[%clk 0:02:40]} 10. Ne2 {[%clk 0:02:51]}  e6 {[%clk 0:02:37]} 11. d3 {[%clk 0:02:51]}  Ne7 {[%clk 0:02:16]} 12. Bb3 {[%clk 0:02:47]}  O-O {[%clk 0:02:14]} 13. Qe1 {[%clk 0:02:47]}  Nc6 {[%clk 0:02:13]} 14. Bd2 {[%clk 0:02:34]}  b5 {[%clk 0:02:06]} 15. axb5 {[%clk 0:02:29]}  axb5 {[%clk 0:01:55]} 16. Rxa8 {[%clk 0:02:28]}  Qxa8 {[%clk 0:01:56]} 17. Qh4 {[%clk 0:02:26]}  Na5 {[%clk 0:01:57]} 18. Ra1 {[%clk 0:02:05]}  b4 {[%clk 0:01:52]} 19. Bxb4 {[%clk 0:01:47]}  Qb7 {[%clk 0:01:26]} 20. Bxa5 {[%clk 0:01:40]}  Ra8 {[%clk 0:01:26]} 21. Qe1 {[%clk 0:01:34]}  d5 {[%clk 0:01:26]} 22. e5 {[%clk 0:01:29]}  Bb5 {[%clk 0:01:18]} 23. Ra2 {[%clk 0:01:23]}  Bxd3 {[%clk 0:01:18]} 24. Nxd4 {[%clk 0:01:21]}  Be4 {[%clk 0:01:16]} 25. Bc3 {[%clk 0:01:12]}  Rc8 {[%clk 0:01:05]} 26. Qa1 {[%clk 0:01:06]}  Qe7 {[%clk 0:01:02]} 27. Ra8 {[%clk 0:01:04]}  Rf8 {[%clk 0:00:26]} 28. Rxf8+ {[%clk 0:00:45]}  Bxf8 {[%clk 0:00:26]} 29. Qe1 {[%clk 0:00:44]}  Qa7 {[%clk 0:00:26]} 30. h3 {[%clk 0:00:41]}  Bc5 {[%clk 0:00:22]} 31. Qd2 {[%clk 0:00:34]}  h5 {[%clk 0:00:22]} 32. Kh2 {[%clk 0:00:34]}  Kh7 {[%clk 0:00:19]} 33. h4 {[%clk 0:00:33]}  Qe7 {[%clk 0:00:19]} 34. Qf2 {[%clk 0:00:24]}  f6 {[%clk 0:00:18]} 35. exf6 {[%clk 0:00:20]}  Qxf6 {[%clk 0:00:17]} 36. g3 {[%clk 0:00:19]}  e5 {[%clk 0:00:18]} 37. Qd2 {[%clk 0:00:18]}  exd4 {[%clk 0:00:17]} 38. Bb4 {[%clk 0:00:03]}  Bb6 {[%clk 0:00:14]} 39. Ba5 {[%clk 0:00:03]}  Ba7 {[%clk 0:00:11]} 40. Qb4 {[%clk 0:00:01]}  Qf7 {[%clk 0:00:10]} 0-1


[Site "https://www.chess.com"]

[Event "Titled Tuesday Blitz January 10 Late 2023"]
[White "Defend, Balint"]
[Black "Movahed, Sina"]
[WhiteFideId "17004853"]
[BlackFideId "42520835"]
[WhiteElo "1673"]
[BlackElo "2340"]
[Result "0-1"]
[Round "04"]
[TimeControl "180+2"]
[Date "2023.01.10"]
[WhiteClock "0:00:07"]
[BlackClock "0:00:16"]

1. e4 {[%clk 0:00:00]}  c5 {[%clk 0:00:00]} 2. Nf3 {[%clk 0:03:00]}  d6 {[%clk 0:03:00]} 3. c3 {[%clk 0:02:59]}  Nf6 {[%clk 0:03:00]} 4. h3 {[%clk 0:02:58]}  g6 {[%clk 0:03:00]} 5. Bd3 {[%clk 0:02:56]}  Bg7 {[%clk 0:02:54]} 6. Bc2 {[%clk 0:02:54]}  O-O {[%clk 0:02:54]} 7. d4 {[%clk 0:02:53]}  cxd4 {[%clk 0:02:55]} 8. cxd4 {[%clk 0:02:52]}  Nc6 {[%clk 0:02:55]} 9. O-O {[%clk 0:02:53]}  e5 {[%clk 0:02:56]} 10. d5 {[%clk 0:02:52]}  Nd4 {[%clk 0:02:56]} 11. Nxd4 {[%clk 0:02:52]}  exd4 {[%clk 0:02:56]} 12. Qxd4 {[%clk 0:02:51]}  Re8 {[%clk 0:02:57]} 13. Qc4 {[%clk 0:02:51]}  Bd7 {[%clk 0:02:57]} 14. Nc3 {[%clk 0:02:28]}  b5 {[%clk 0:02:53]} 15. Qb4 {[%clk 0:02:26]}  Qb6 {[%clk 0:02:51]} 16. Be3 {[%clk 0:02:09]}  a5 {[%clk 0:01:49]} 17. Qb3 {[%clk 0:02:04]}  Qb8 {[%clk 0:01:50]} 18. f3 {[%clk 0:01:54]}  b4 {[%clk 0:01:47]} 19. Na4 {[%clk 0:01:40]}  Bxa4 {[%clk 0:01:44]} 20. Qxa4 {[%clk 0:01:40]}  Nxd5 {[%clk 0:01:25]} 21. Bf2 {[%clk 0:01:40]}  Nf4 {[%clk 0:01:26]} 22. Rab1 {[%clk 0:01:13]}  d5 {[%clk 0:01:26]} 23. exd5 {[%clk 0:00:56]}  Re2 {[%clk 0:01:18]} 24. Rbd1 {[%clk 0:00:56]}  Qc8 {[%clk 0:01:14]} 25. Be4 {[%clk 0:00:34]}  Nxh3+ {[%clk 0:00:54]} 26. gxh3 {[%clk 0:00:32]}  Qxh3 {[%clk 0:00:48]} 27. Rfe1 {[%clk 0:00:20]}  Rxf2 {[%clk 0:00:49]} 28. Kxf2 {[%clk 0:00:15]}  Qh2+ {[%clk 0:00:25]} 29. Kf1 {[%clk 0:00:15]}  Qh1+ {[%clk 0:00:25]} 30. Ke2 {[%clk 0:00:12]}  Qg2+ {[%clk 0:00:19]} 31. Kd3 {[%clk 0:00:12]}  Qxb2 {[%clk 0:00:19]} 32. Qb3 {[%clk 0:00:12]}  Qe5 {[%clk 0:00:15]} 33. Bxg6 {[%clk 0:00:12]}  Qd4+ {[%clk 0:00:13]} 34. Ke2 {[%clk 0:00:06]}  Re8+ {[%clk 0:00:08]} 35. Kf1 {[%clk 0:00:06]}  Rxe1+ {[%clk 0:00:08]} 36. Kxe1 {[%clk 0:00:07]}  Qg1+ {[%clk 0:00:08]} 37. Ke2 {[%clk 0:00:05]}  Qg2+ {[%clk 0:00:08]} 38. Ke1 {[%clk 0:00:06]}  hxg6 {[%clk 0:00:09]} 39. d6 {[%clk 0:00:04]}  Bf6 {[%clk 0:00:09]} 40. d7 {[%clk 0:00:04]}  Bd8 {[%clk 0:00:09]} 41. Rd2 {[%clk 0:00:04]}  Qg1+ {[%clk 0:00:09]} 42. Ke2 {[%clk 0:00:03]}  Qg5 {[%clk 0:00:10]} 43. Qe3 {[%clk 0:00:03]}  Qb5+ {[%clk 0:00:10]} 44. Qd3 {[%clk 0:00:03]}  Qg5 {[%clk 0:00:11]} 45. Qe4 {[%clk 0:00:03]}  Kg7 {[%clk 0:00:10]} 46. Rd5 {[%clk 0:00:04]}  Qg2+ {[%clk 0:00:10]} 47. Kd3 {[%clk 0:00:02]}  Qxa2 {[%clk 0:00:10]} 48. Qd4+ {[%clk 0:00:02]}  Bf6 {[%clk 0:00:09]} 49. d8=Q {[%clk 0:00:02]}  Bxd4 {[%clk 0:00:09]} 50. Rxd4 {[%clk 0:00:02]}  Qb3+ {[%clk 0:00:10]} 51. Ke4 {[%clk 0:00:01]}  Qe6+ {[%clk 0:00:10]} 52. Kd3 {[%clk 0:00:02]}  Qb3+ {[%clk 0:00:10]} 53. Ke2 {[%clk 0:00:02]}  Qc2+ {[%clk 0:00:09]} 54. Ke3 {[%clk 0:00:02]}  Qc3+ {[%clk 0:00:09]} 55. Rd3 {[%clk 0:00:03]}  Qe1+ {[%clk 0:00:10]} 56. Kd4 {[%clk 0:00:04]}  Qa1+ {[%clk 0:00:09]} 57. Kc5 {[%clk 0:00:04]}  Qe5+ {[%clk 0:00:06]} 58. Kc4 {[%clk 0:00:04]}  Qe6+ {[%clk 0:00:05]} 59. Kb5 {[%clk 0:00:04]}  b3 {[%clk 0:00:04]} 60. Qd4+ {[%clk 0:00:04]}  Kg8 {[%clk 0:00:03]} 61. Kxa5 {[%clk 0:00:05]}  Qf5+ {[%clk 0:00:03]} 62. Kb4 {[%clk 0:00:05]}  b2 {[%clk 0:00:03]} 63. Rb3 {[%clk 0:00:05]}  b1=Q {[%clk 0:00:04]} 64. Qd8+ {[%clk 0:00:04]}  Kg7 {[%clk 0:00:03]} 65. Qd4+ {[%clk 0:00:04]}  Kh7 {[%clk 0:00:03]} 66. Qh4+ {[%clk 0:00:05]}  Kg7 {[%clk 0:00:04]} 67. Qd4+ {[%clk 0:00:05]}  f6 {[%clk 0:00:05]} 68. Qa7+ {[%clk 0:00:05]}  Kh6 {[%clk 0:00:05]} 69. Qe3+ {[%clk 0:00:04]}  Kh5 {[%clk 0:00:06]} 70. Rxb1 {[%clk 0:00:04]}  Qxb1+ {[%clk 0:00:07]} 71. Kc4 {[%clk 0:00:03]}  Qf5 {[%clk 0:00:07]} 72. Kd4 {[%clk 0:00:04]}  g5 {[%clk 0:00:08]} 73. Qg1 {[%clk 0:00:04]}  Qf4+ {[%clk 0:00:08]} 74. Kc5 {[%clk 0:00:04]}  Qxf3 {[%clk 0:00:09]} 75. Qh2+ {[%clk 0:00:03]}  Kg6 {[%clk 0:00:09]} 76. Qb8 {[%clk 0:00:03]}  Qf5+ {[%clk 0:00:09]} 77. Kc4 {[%clk 0:00:03]}  Qe5 {[%clk 0:00:10]} 78. Kd3 {[%clk 0:00:03]}  Kf5 {[%clk 0:00:11]} 79. Qc8+ {[%clk 0:00:04]}  Kf4 {[%clk 0:00:11]} 80. Qf8 {[%clk 0:00:04]}  g4 {[%clk 0:00:11]} 81. Kd2 {[%clk 0:00:03]}  Kg3 {[%clk 0:00:11]} 82. Qh6 {[%clk 0:00:04]}  Qg5+ {[%clk 0:00:11]} 83. Qxg5 {[%clk 0:00:04]}  fxg5 {[%clk 0:00:11]} 84. Ke1 {[%clk 0:00:04]}  Kh2 {[%clk 0:00:12]} 85. Ke2 {[%clk 0:00:04]}  g3 {[%clk 0:00:13]} 86. Kf3 {[%clk 0:00:05]}  g2 {[%clk 0:00:14]} 87. Kg4 {[%clk 0:00:05]}  g1=Q+ {[%clk 0:00:15]} 88. Kf5 {[%clk 0:00:06]}  g4 {[%clk 0:00:15]} 89. Kg6 {[%clk 0:00:07]}  g3 {[%clk 0:00:16]} 0-1


[Site "https://www.chess.com"]

[Event "Titled Tuesday Blitz January 10 Late 2023"]
[White "Goryachkina, Aleksandra"]
[Black "Pasti, Aron"]
[WhiteFideId "4147103"]
[BlackFideId "785857"]
[WhiteElo "2571"]
[BlackElo "2361"]
[Result "1-0"]
[Round "04"]
[TimeControl "180+2"]
[Date "2023.01.10"]
[WhiteClock "0:00:20"]
[BlackClock "0:00:02"]

1. e4 {[%clk 0:00:00]}  c5 {[%clk 0:00:00]} 2. Nf3 {[%clk 0:02:59]}  e6 {[%clk 0:03:00]} 3. g3 {[%clk 0:02:59]}  Nc6 {[%clk 0:02:57]} 4. Bg2 {[%clk 0:02:57]}  d6 {[%clk 0:02:51]} 5. O-O {[%clk 0:02:56]}  Nf6 {[%clk 0:02:52]} 6. Re1 {[%clk 0:02:56]}  Be7 {[%clk 0:02:52]} 7. c3 {[%clk 0:02:56]}  O-O {[%clk 0:02:52]} 8. d4 {[%clk 0:02:56]}  e5 {[%clk 0:02:49]} 9. d5 {[%clk 0:02:56]}  Nb8 {[%clk 0:02:49]} 10. Nbd2 {[%clk 0:02:42]}  Nbd7 {[%clk 0:02:48]} 11. a4 {[%clk 0:02:37]}  Rb8 {[%clk 0:02:47]} 12. b4 {[%clk 0:02:32]}  b6 {[%clk 0:02:46]} 13. Nc4 {[%clk 0:02:28]}  Re8 {[%clk 0:02:40]} 14. Bd2 {[%clk 0:02:16]}  Nf8 {[%clk 0:02:22]} 15. b5 {[%clk 0:02:09]}  g6 {[%clk 0:02:19]} 16. Qc2 {[%clk 0:02:04]}  Nh5 {[%clk 0:02:13]} 17. a5 {[%clk 0:01:57]}  f5 {[%clk 0:02:13]} 18. axb6 {[%clk 0:01:44]}  axb6 {[%clk 0:02:12]} 19. Bh6 {[%clk 0:01:32]}  fxe4 {[%clk 0:02:04]} 20. Nfd2 {[%clk 0:01:32]}  Bd7 {[%clk 0:02:01]} 21. Qb3 {[%clk 0:01:32]}  Nf6 {[%clk 0:01:54]} 22. Nxe4 {[%clk 0:01:30]}  Nxe4 {[%clk 0:01:44]} 23. Bxe4 {[%clk 0:01:28]}  g5 {[%clk 0:01:37]} 24. Bxf8 {[%clk 0:01:29]}  Rxf8 {[%clk 0:01:33]} 25. Nxe5 {[%clk 0:01:18]}  dxe5 {[%clk 0:01:32]} 26. d6+ {[%clk 0:01:11]}  Kh8 {[%clk 0:01:19]} 27. dxe7 {[%clk 0:01:11]}  Qxe7 {[%clk 0:01:20]} 28. Ra7 {[%clk 0:01:11]}  Qf6 {[%clk 0:01:20]} 29. Qc2 {[%clk 0:01:07]}  Bf5 {[%clk 0:01:17]} 30. Bxf5 {[%clk 0:01:01]}  Qxf5 {[%clk 0:01:11]} 31. Qxf5 {[%clk 0:00:45]}  Rxf5 {[%clk 0:01:11]} 32. Rd1 {[%clk 0:00:45]}  e4 {[%clk 0:01:12]} 33. Rdd7 {[%clk 0:00:45]}  c4 {[%clk 0:00:31]} 34. Rxh7+ {[%clk 0:00:43]}  Kg8 {[%clk 0:00:32]} 35. Rag7+ {[%clk 0:00:42]}  Kf8 {[%clk 0:00:32]} 36. Rc7 {[%clk 0:00:30]}  Kg8 {[%clk 0:00:32]} 37. Rhe7 {[%clk 0:00:29]}  Rxb5 {[%clk 0:00:31]} 38. Rxe4 {[%clk 0:00:27]}  Rf8 {[%clk 0:00:28]} 39. Ree7 {[%clk 0:00:26]}  Rd8 {[%clk 0:00:16]} 40. Rxc4 {[%clk 0:00:22]}  Rb2 {[%clk 0:00:02]} 41. h4 {[%clk 0:00:20]} 1-0


[Site "https://www.chess.com"]

[Event "Titled Tuesday Blitz January 10 Late 2023"]
[White "Andrews, Todd"]
[Black "Baskin, Robert"]
[WhiteFideId "2012456"]
[BlackFideId "24662402"]
[WhiteElo "2220"]
[BlackElo "2442"]
[Result "0-1"]
[Round "04"]
[TimeControl "180+2"]
[Date "2023.01.10"]
[WhiteClock "0:00:06"]
[BlackClock "0:00:27"]

1. e4 {[%clk 0:00:00]}  Nc6 {[%clk 0:00:00]} 2. Nf3 {[%clk 0:03:00]}  d6 {[%clk 0:02:56]} 3. c4 {[%clk 0:03:00]}  Nf6 {[%clk 0:02:56]} 4. Nc3 {[%clk 0:02:57]}  g6 {[%clk 0:02:55]} 5. d4 {[%clk 0:02:56]}  Bg7 {[%clk 0:02:52]} 6. Be2 {[%clk 0:02:53]}  O-O {[%clk 0:02:52]} 7. O-O {[%clk 0:02:53]}  e5 {[%clk 0:02:52]} 8. d5 {[%clk 0:02:53]}  Ne7 {[%clk 0:02:52]} 9. b4 {[%clk 0:02:54]}  Nh5 {[%clk 0:02:51]} 10. Re1 {[%clk 0:02:55]}  f5 {[%clk 0:02:49]} 11. Ng5 {[%clk 0:02:55]}  Nf6 {[%clk 0:02:45]} 12. Bf3 {[%clk 0:02:55]}  c6 {[%clk 0:02:44]} 13. Be3 {[%clk 0:02:55]}  f4 {[%clk 0:02:43]} 14. Bc1 {[%clk 0:02:52]}  cxd5 {[%clk 0:02:36]} 15. cxd5 {[%clk 0:02:42]}  h6 {[%clk 0:02:15]} 16. Ne6 {[%clk 0:02:39]}  Qe8 {[%clk 0:02:13]} 17. Nc7 {[%clk 0:02:38]}  Qd8 {[%clk 0:02:13]} 18. Nxa8 {[%clk 0:02:07]}  g5 {[%clk 0:02:08]} 19. h3 {[%clk 0:02:06]}  Bd7 {[%clk 0:02:09]} 20. b5 {[%clk 0:01:57]}  Qxa8 {[%clk 0:02:08]} 21. Ba3 {[%clk 0:01:53]}  Qb8 {[%clk 0:02:01]} 22. Rc1 {[%clk 0:01:53]}  Ng6 {[%clk 0:01:57]} 23. Bg4 {[%clk 0:01:49]}  Nxg4 {[%clk 0:01:52]} 24. hxg4 {[%clk 0:01:29]}  Nh4 {[%clk 0:01:26]} 25. f3 {[%clk 0:01:30]}  a6 {[%clk 0:01:22]} 26. b6 {[%clk 0:01:28]}  Qd8 {[%clk 0:01:19]} 27. Qb3 {[%clk 0:01:24]}  Rf6 {[%clk 0:01:19]} 28. Nd1 {[%clk 0:01:22]}  h5 {[%clk 0:01:17]} 29. Nf2 {[%clk 0:01:16]}  hxg4 {[%clk 0:01:16]} 30. fxg4 {[%clk 0:00:57]}  Rh6 {[%clk 0:01:09]} 31. Rc3 {[%clk 0:00:53]}  f3 {[%clk 0:00:56]} 32. Rxf3 {[%clk 0:00:50]}  Nxf3+ {[%clk 0:00:53]} 33. gxf3 {[%clk 0:00:39]}  Qf6 {[%clk 0:00:53]} 34. Qe3 {[%clk 0:00:39]}  Bf8 {[%clk 0:00:47]} 35. Rc1 {[%clk 0:00:35]}  Be7 {[%clk 0:00:35]} 36. Rc7 {[%clk 0:00:36]}  Bb5 {[%clk 0:00:32]} 37. Rc8+ {[%clk 0:00:36]}  Kf7 {[%clk 0:00:32]} 38. Rb8 {[%clk 0:00:26]}  Rh7 {[%clk 0:00:31]} 39. Rxb7 {[%clk 0:00:23]}  Qh6 {[%clk 0:00:31]} 40. Rxe7+ {[%clk 0:00:12]}  Kxe7 {[%clk 0:00:28]} 41. Bxd6+ {[%clk 0:00:06]}  Kxd6 {[%clk 0:00:29]} 42. Qa3+ {[%clk 0:00:06]}  Kd7 {[%clk 0:00:27]} 0-1


[Site "https://www.chess.com"]

[Event "Titled Tuesday Blitz January 10 Late 2023"]
[White "Seletsky, Grigory"]
[Black "Vlassov, Nikolai"]
[WhiteFideId "14112191"]
[BlackFideId "4103360"]
[WhiteElo "2259"]
[BlackElo "2283"]
[Result "0-1"]
[Round "04"]
[TimeControl "180+2"]
[Date "2023.01.10"]
[WhiteClock "0:00:01"]
[BlackClock "0:00:14"]

1. d4 {[%clk 0:00:00]}  Nf6 {[%clk 0:00:00]} 2. c4 {[%clk 0:02:58]}  Nc6 {[%clk 0:02:59]} 3. Nc3 {[%clk 0:02:56]}  e5 {[%clk 0:03:00]} 4. d5 {[%clk 0:02:55]}  Ne7 {[%clk 0:02:59]} 5. e4 {[%clk 0:02:55]}  Ng6 {[%clk 0:03:00]} 6. Be3 {[%clk 0:02:51]}  Bb4 {[%clk 0:03:00]} 7. Rc1 {[%clk 0:02:50]}  Nxe4 {[%clk 0:02:58]} 8. h4 {[%clk 0:02:44]}  Ne7 {[%clk 0:02:57]} 9. Qg4 {[%clk 0:02:41]}  Nxc3 {[%clk 0:02:26]} 10. bxc3 {[%clk 0:02:22]}  Ba3 {[%clk 0:02:23]} 11. Qxg7 {[%clk 0:02:20]}  Rg8 {[%clk 0:02:23]} 12. Qxh7 {[%clk 0:02:16]}  Bxc1 {[%clk 0:02:20]} 13. Bxc1 {[%clk 0:02:15]}  d6 {[%clk 0:02:19]} 14. Bg5 {[%clk 0:02:16]}  Bf5 {[%clk 0:01:50]} 15. Qh5 {[%clk 0:02:11]}  Bg6 {[%clk 0:01:50]} 16. Qd1 {[%clk 0:02:01]}  c6 {[%clk 0:01:42]} 17. h5 {[%clk 0:01:38]}  Bh7 {[%clk 0:01:39]} 18. dxc6 {[%clk 0:01:31]}  bxc6 {[%clk 0:01:33]} 19. Nf3 {[%clk 0:01:07]}  e4 {[%clk 0:01:31]} 20. Bxe7 {[%clk 0:00:56]}  Qxe7 {[%clk 0:01:18]} 21. Nd4 {[%clk 0:00:52]}  Rc8 {[%clk 0:01:18]} 22. Rh3 {[%clk 0:00:53]}  Qb7 {[%clk 0:01:08]} 23. Qc1 {[%clk 0:00:27]}  Rb8 {[%clk 0:00:34]} 24. Nb3 {[%clk 0:00:21]}  a5 {[%clk 0:00:31]} 25. Qh6 {[%clk 0:00:21]}  Bf5 {[%clk 0:00:27]} 26. Rg3 {[%clk 0:00:20]}  Rxg3 {[%clk 0:00:24]} 27. fxg3 {[%clk 0:00:08]}  a4 {[%clk 0:00:23]} 28. Nd4 {[%clk 0:00:08]}  Bd7 {[%clk 0:00:23]} 29. Be2 {[%clk 0:00:07]}  Qb2 {[%clk 0:00:18]} 30. Qe3 {[%clk 0:00:04]}  Qxa2 {[%clk 0:00:17]} 31. h6 {[%clk 0:00:01]}  Qa1+ {[%clk 0:00:16]} 32. Kf2 {[%clk 0:00:01]}  Qh1 {[%clk 0:00:14]} 0-1


[Site "https://www.chess.com"]

[Event "Titled Tuesday Blitz January 10 Late 2023"]
[White "Barria Zuniga, Daniel"]
[Black "Carbone, Diego"]
[WhiteFideId "3400816"]
[BlackFideId "3002179"]
[WhiteElo "2341"]
[BlackElo "2336"]
[Result "0-1"]
[Round "04"]
[TimeControl "180+2"]
[Date "2023.01.10"]
[WhiteClock "0:00:55"]
[BlackClock "0:00:29"]

1. d4 {[%clk 0:00:00]}  Nf6 {[%clk 0:00:00]} 2. c4 {[%clk 0:03:00]}  g6 {[%clk 0:02:57]} 3. Nc3 {[%clk 0:03:01]}  d5 {[%clk 0:02:58]} 4. Qa4+ {[%clk 0:03:00]}  Nc6 {[%clk 0:02:58]} 5. Bg5 {[%clk 0:03:00]}  a6 {[%clk 0:02:51]} 6. Bxf6 {[%clk 0:02:55]}  exf6 {[%clk 0:02:23]} 7. cxd5 {[%clk 0:02:47]}  b5 {[%clk 0:02:24]} 8. Nxb5 {[%clk 0:02:47]}  axb5 {[%clk 0:02:17]} 9. Qxa8 {[%clk 0:02:47]}  Bb4+ {[%clk 0:02:13]} 10. Kd1 {[%clk 0:02:47]}  Nxd4 {[%clk 0:02:14]} 11. Nf3 {[%clk 0:02:44]}  Nxf3 {[%clk 0:02:13]} 12. gxf3 {[%clk 0:02:31]}  O-O {[%clk 0:02:09]} 13. e4 {[%clk 0:02:19]}  f5 {[%clk 0:02:09]} 14. Qc6 {[%clk 0:02:18]}  Bd7 {[%clk 0:02:06]} 15. Qc2 {[%clk 0:02:06]}  fxe4 {[%clk 0:02:04]} 16. fxe4 {[%clk 0:02:01]}  Qf6 {[%clk 0:02:04]} 17. Qb3 {[%clk 0:02:00]}  Qxf2 {[%clk 0:02:03]} 18. Be2 {[%clk 0:01:52]}  c5 {[%clk 0:01:56]} 19. Rf1 {[%clk 0:01:45]}  Qd4+ {[%clk 0:01:41]} 20. Qd3 {[%clk 0:01:34]}  Qxb2 {[%clk 0:01:36]} 21. Rb1 {[%clk 0:01:34]}  Qxa2 {[%clk 0:01:36]} 22. Qc2 {[%clk 0:01:28]}  Qa3 {[%clk 0:01:35]} 23. Qb3 {[%clk 0:01:20]}  Qa5 {[%clk 0:01:25]} 24. e5 {[%clk 0:01:14]}  Qc7 {[%clk 0:01:18]} 25. e6 {[%clk 0:00:59]}  fxe6 {[%clk 0:00:46]} 26. dxe6 {[%clk 0:00:55]}  Qd6+ {[%clk 0:00:30]} 27. Kc2 {[%clk 0:00:55]}  Qd2# {[%clk 0:00:29]} 0-1


[Site "https://www.chess.com"]

[Event "Titled Tuesday Blitz January 10 Late 2023"]
[White "Jaferian, Koosha"]
[Black "Yashmetov, Mikhail"]
[WhiteFideId "12507440"]
[BlackFideId "24198900"]
[WhiteElo "2233"]
[BlackElo "2323"]
[Result "1-0"]
[Round "04"]
[TimeControl "180+2"]
[Date "2023.01.10"]
[WhiteClock "0:00:19"]
[BlackClock "0:00:03"]

1. Nf3 {[%clk 0:00:00]}  Nf6 {[%clk 0:00:00]} 2. b3 {[%clk 0:02:58]}  g6 {[%clk 0:03:00]} 3. Bb2 {[%clk 0:02:57]}  Bg7 {[%clk 0:03:00]} 4. g3 {[%clk 0:02:58]}  O-O {[%clk 0:03:01]} 5. Bg2 {[%clk 0:02:58]}  d5 {[%clk 0:03:01]} 6. c4 {[%clk 0:02:59]}  c5 {[%clk 0:03:01]} 7. cxd5 {[%clk 0:02:59]}  Nxd5 {[%clk 0:02:49]} 8. Bxg7 {[%clk 0:02:59]}  Kxg7 {[%clk 0:02:49]} 9. Qc1 {[%clk 0:03:00]}  Qd6 {[%clk 0:02:50]} 10. Nc3 {[%clk 0:03:01]}  Nf6 {[%clk 0:02:40]} 11. O-O {[%clk 0:03:00]}  Bd7 {[%clk 0:02:33]} 12. Rd1 {[%clk 0:02:51]}  e5 {[%clk 0:02:32]} 13. d3 {[%clk 0:02:45]}  Nc6 {[%clk 0:02:28]} 14. Ng5 {[%clk 0:02:39]}  b6 {[%clk 0:02:23]} 15. Nge4 {[%clk 0:02:15]}  Nxe4 {[%clk 0:02:15]} 16. Nxe4 {[%clk 0:02:14]}  Qe7 {[%clk 0:02:15]} 17. a3 {[%clk 0:02:13]}  Nd4 {[%clk 0:02:15]} 18. Qb2 {[%clk 0:02:07]}  Rac8 {[%clk 0:02:08]} 19. b4 {[%clk 0:02:02]}  c4 {[%clk 0:01:49]} 20. dxc4 {[%clk 0:01:56]}  Rxc4 {[%clk 0:01:39]} 21. e3 {[%clk 0:01:34]}  Rc2 {[%clk 0:01:40]} 22. Qb1 {[%clk 0:01:35]}  Ne2+ {[%clk 0:01:07]} 23. Kh1 {[%clk 0:01:33]}  Rfc8 {[%clk 0:01:07]} 24. Qb3 {[%clk 0:01:33]}  Be6 {[%clk 0:01:07]} 25. Qd3 {[%clk 0:01:15]}  Rb2 {[%clk 0:00:41]} 26. Rd2 {[%clk 0:01:12]}  Nc1 {[%clk 0:00:40]} 27. Qa6 {[%clk 0:01:04]}  Rcc2 {[%clk 0:00:23]} 28. Rxc2 {[%clk 0:00:54]}  Rxc2 {[%clk 0:00:17]} 29. Qf1 {[%clk 0:00:43]}  Bc4 {[%clk 0:00:18]} 30. Qd1 {[%clk 0:00:43]}  Nb3 {[%clk 0:00:16]} 31. Qxc2 {[%clk 0:00:42]}  Nxa1 {[%clk 0:00:04]} 32. Qxc4 {[%clk 0:00:42]}  Qd8 {[%clk 0:00:05]} 33. Nc3 {[%clk 0:00:43]}  Qd2 {[%clk 0:00:03]} 34. Kg1 {[%clk 0:00:31]}  Qe1+ {[%clk 0:00:03]} 35. Bf1 {[%clk 0:00:30]}  Nc2 {[%clk 0:00:04]} 36. Qd3 {[%clk 0:00:30]}  Nxa3 {[%clk 0:00:04]} 37. Nd5 {[%clk 0:00:23]}  Nb1 {[%clk 0:00:03]} 38. Kg2 {[%clk 0:00:21]}  Nd2 {[%clk 0:00:02]} 39. Be2 {[%clk 0:00:19]}  e4 {[%clk 0:00:03]} 40. Qd4+ {[%clk 0:00:19]}  f6 {[%clk 0:00:03]} 41. Qxf6+ {[%clk 0:00:19]}  Kh6 {[%clk 0:00:03]} 42. Qf8+ {[%clk 0:00:19]}  Kg5 {[%clk 0:00:03]} 43. h4# {[%clk 0:00:19]} 1-0


[Site "https://www.chess.com"]

[Event "Titled Tuesday Blitz January 10 Late 2023"]
[White "Boder, Jan"]
[Black "Abrahamyan, Tatev"]
[WhiteFideId "16243226"]
[BlackFideId "13301918"]
[WhiteElo "2294"]
[BlackElo "2294"]
[Result "1-0"]
[Round "04"]
[TimeControl "180+2"]
[Date "2023.01.10"]
[WhiteClock "0:02:35"]
[BlackClock "0:01:46"]

1. b3 {[%clk 0:00:00]}  e5 {[%clk 0:00:00]} 2. Bb2 {[%clk 0:02:59]}  Nc6 {[%clk 0:02:59]} 3. e3 {[%clk 0:03:00]}  d5 {[%clk 0:02:59]} 4. Bb5 {[%clk 0:02:59]}  Bd6 {[%clk 0:02:58]} 5. f4 {[%clk 0:02:59]}  Qe7 {[%clk 0:02:58]} 6. Nf3 {[%clk 0:02:58]}  f6 {[%clk 0:02:57]} 7. Nc3 {[%clk 0:02:58]}  Be6 {[%clk 0:02:56]} 8. e4 {[%clk 0:02:56]}  d4 {[%clk 0:02:52]} 9. Nd5 {[%clk 0:02:56]}  Qf7 {[%clk 0:02:47]} 10. fxe5 {[%clk 0:02:56]}  Bxe5 {[%clk 0:02:45]} 11. O-O {[%clk 0:02:51]}  Qd7 {[%clk 0:02:22]} 12. Nxe5 {[%clk 0:02:49]}  fxe5 {[%clk 0:01:56]} 13. Bxc6 {[%clk 0:02:34]}  bxc6 {[%clk 0:01:50]} 14. Qh5+ {[%clk 0:02:34]}  Kd8 {[%clk 0:01:46]} 15. Rf8+ {[%clk 0:02:35]} 1-0


[Site "https://www.chess.com"]

[Event "Titled Tuesday Blitz January 10 Late 2023"]
[White "Melikhov, Evgeny V."]
[Black "Bjelobrk, Igor"]
[WhiteFideId "4122046"]
[BlackFideId "4300726"]
[WhiteElo "2269"]
[BlackElo "2403"]
[Result "0-1"]
[Round "04"]
[TimeControl "180+2"]
[Date "2023.01.10"]
[WhiteClock "0:00:28"]
[BlackClock "0:00:58"]

1. d4 {[%clk 0:00:00]}  d5 {[%clk 0:00:00]} 2. c4 {[%clk 0:03:00]}  c6 {[%clk 0:02:35]} 3. Nc3 {[%clk 0:03:00]}  Nf6 {[%clk 0:02:34]} 4. e3 {[%clk 0:03:00]}  Bf5 {[%clk 0:02:34]} 5. Nf3 {[%clk 0:03:00]}  e6 {[%clk 0:02:32]} 6. Nh4 {[%clk 0:03:00]}  Be4 {[%clk 0:02:31]} 7. f3 {[%clk 0:03:00]}  Bg6 {[%clk 0:02:31]} 8. Nxg6 {[%clk 0:02:58]}  hxg6 {[%clk 0:02:29]} 9. Bd2 {[%clk 0:02:56]}  Be7 {[%clk 0:02:29]} 10. Qb3 {[%clk 0:02:46]}  Qc7 {[%clk 0:02:28]} 11. g3 {[%clk 0:02:43]}  dxc4 {[%clk 0:02:24]} 12. Bxc4 {[%clk 0:02:41]}  b5 {[%clk 0:02:21]} 13. Bd3 {[%clk 0:02:38]}  a6 {[%clk 0:02:22]} 14. O-O-O {[%clk 0:02:34]}  c5 {[%clk 0:02:21]} 15. dxc5 {[%clk 0:02:30]}  Nbd7 {[%clk 0:02:21]} 16. Kb1 {[%clk 0:02:26]}  Nxc5 {[%clk 0:02:20]} 17. Qc2 {[%clk 0:02:05]}  Rc8 {[%clk 0:02:19]} 18. Ne4 {[%clk 0:02:05]}  Nfxe4 {[%clk 0:02:12]} 19. Bxe4 {[%clk 0:01:55]}  O-O {[%clk 0:02:07]} 20. Rc1 {[%clk 0:01:54]}  Qb8 {[%clk 0:02:02]} 21. Ba5 {[%clk 0:01:36]}  Bf6 {[%clk 0:01:52]} 22. Rhd1 {[%clk 0:01:24]}  Na4 {[%clk 0:01:33]} 23. Bc7 {[%clk 0:01:04]}  Qa7 {[%clk 0:01:18]} 24. Qc6 {[%clk 0:00:32]}  Nxb2 {[%clk 0:01:17]} 25. Rd7 {[%clk 0:00:30]}  Nc4 {[%clk 0:01:06]} 26. Bxg6 {[%clk 0:00:28]}  Na3# {[%clk 0:00:58]} 0-1


[Site "https://www.chess.com"]